bitfinex-derivatives/quotes_SOLF0:USTF0_20260204
["timestamp","ask_amount","ask_price","bid_price","bid_amount"]
[1770239166587,9.6974,92.995,92.921,7.68010302]
[1770239166985,8.10243849,93.04,92.921,7.68010302]
[1770239167381,9.6984,92.986,92.921,7.68010302]
[1770239167581,8.10243849,93.02,92.921,7.68010302]
[1770239168682,8.10243849,93.02,92.899,382.70972112]
[1770239168683,8.10243849,93.02,92.924,7.69101653]
[1770239169280,8.10243849,93.0,92.924,7.69101653]
[1770239171289,9.7011,92.96,92.924,7.69101653]
[1770239171489,0.21784767,92.999,92.865,9.7109]
[1770239171694,0.21784767,92.979,92.865,9.7109]
[1770239172691,9.7034,92.937,92.86,8.10243849]
[1770239172986,9.7034,92.937,92.854,9.712]
[1770239173187,9.7045,92.927,92.854,9.712]
[1770239173387,9.7045,92.927,92.855,3.9429619]
[1770239173587,0.24784786,92.959,92.855,3.9429619]
[1770239173792,9.7064,92.909,92.855,3.9429619]
[1770239174188,0.24784786,92.937,92.855,3.9429619]
[1770239174384,9.7086,92.888,92.817,418.75057133]
[1770239174688,0.36429278,92.918,92.818,3.9429619]
[1770239174885,9.7074,92.9,92.818,3.9429619]
[1770239175285,0.36429278,92.918,92.818,3.9429619]
[1770239175589,0.36429278,92.9,92.818,3.9429619]
[1770239176686,9.7092,92.881,92.818,3.9429619]
[1770239177493,9.7104,92.871,92.818,3.9429619]
[1770239177792,0.36429278,92.9,92.818,3.9429619]
[1770239179989,9.7091,92.883,92.818,3.9429619]
[1770239180592,9.71,92.874,92.818,3.9429619]
[1770239180890,0.45864975,92.936,92.818,3.9429619]
[1770239181192,0.45864975,92.936,92.831,3.9429619]
[1770239181392,0.45864975,92.936,92.83,8.10243849]
[1770239181393,9.7061,92.903,92.835,3.9429619]
[1770239182488,0.45864975,92.936,92.837,3.9429619]
[1770239182891,0.45864975,92.936,92.842,3.9429619]
[1770239183990,3.72705998,92.917,92.842,3.9429619]
[1770239184588,3.72705998,92.917,92.757,414.06689342]
[1770239184589,3.72705998,92.917,92.811,3.58931181]
[1770239185895,9.707,92.894,92.821,3.58931181]
[1770239186094,3.72705998,92.917,92.821,3.58931181]
[1770239187395,9.7065,92.899,92.823,3.58931181]
[1770239187592,3.72705998,92.917,92.823,3.58931181]
[1770239188794,3.72705998,92.917,92.831,3.58931181]
[1770239189395,9.7065,92.899,92.835,3.58931181]
[1770239189695,3.72705998,92.917,92.835,3.58931181]
[1770239190085,9.7087,92.879,92.835,3.58931181]
[1770239190289,3.72705998,92.9,92.835,3.58931181]
[1770239191089,8.1448711,92.88,92.791,3.58931181]
[1770239191392,3.72705998,92.879,92.791,3.58931181]
[1770239191596,9.714,92.827,92.791,3.58931181]
[1770239191900,3.72705998,92.858,92.791,3.58931181]
[1770239192089,9.714,92.827,92.791,3.58931181]
[1770239192791,3.72705998,92.858,92.791,3.58931181]
[1770239192792,9.7153,92.816,92.791,3.58931181]
[1770239193194,9.7153,92.816,92.702,32.36]
[1770239193195,11.87193108,92.84,92.758,3.58931181]
[1770239193394,9.718,92.798,92.758,3.58931181]
[1770239194292,3.72705998,92.82,92.719,1.87586415]
[1770239194491,3.72705998,92.819,92.68,8.1448711]
[1770239194696,3.72705998,92.799,92.68,8.1448711]
[1770239194901,9.7205,92.774,92.7,9.7281]
[1770239195090,3.72705998,92.799,92.68,8.1448711]
[1770239195295,9.7241,92.739,92.66,8.1448711]
[1770239195496,3.72705998,92.779,92.66,8.1448711]
[1770239195900,3.72705998,92.779,92.669,1.8769771]
[1770239196097,3.72705998,92.841,92.72,8.1448711]
[1770239196295,3.72705998,92.83,92.721,1.73062305]
[1770239196597,3.72705998,92.804,92.721,1.73062305]
[1770239198001,3.72705998,92.772,92.693,1.72410416]
[1770239198404,9.7248,92.733,92.693,1.72410416]
[1770239198596,9.7248,92.733,92.579,151.5255]
[1770239198597,151.2602,92.742,92.553,151.5678]
[1770239198804,3.99495894,92.741,92.659,1.87715934]
[1770239199106,3.99495894,92.741,92.63,8.1448711]
[1770239199302,3.99495894,92.74,92.61,8.1448711]
[1770239199499,3.99495894,92.74,92.629,1.87742264]
[1770239199798,159.3919711,92.75,92.629,1.87742264]
[1770239199799,9.7282,92.7,92.629,1.87742264]
[1770239200098,151.246,92.751,92.629,1.87742264]
[1770239200099,3.99495894,92.746,92.64,8.1448711]
[1770239200402,3.99495894,92.746,92.629,1.87742264]
[1770239200403,8.1448711,92.72,92.629,1.87742264]
[1770239200592,8.1448711,92.72,92.52,159.7667711]
[1770239200593,8.89422408,92.675,92.48,151.688]
[1770239200792,8.89422408,92.675,92.462,151.717]
[1770239200793,7.95551276,92.688,92.59,8.1448711]
[1770239200991,7.95551276,92.739,92.61,8.1448711]
[1770239201192,7.95551276,92.739,92.631,9.7354]
[1770239201395,7.95551276,92.739,92.576,151.5299]
[1770239201396,7.95551276,92.762,92.67,8.1448711]
[1770239201599,7.95551276,92.762,92.598,151.4941]
[1770239201600,9.7277,92.705,92.63,8.1448711]
[1770239201903,8.1448711,92.75,92.63,8.1448711]
[1770239201904,7.95551276,92.727,92.63,8.1448711]
[1770239202105,9.7278,92.705,92.63,8.1448711]
[1770239202300,9.7278,92.705,92.61,8.1448711]
[1770239202500,7.95551276,92.727,92.61,8.1448711]
[1770239202703,151.267,92.738,92.59,8.1448711]
[1770239202704,9.7308,92.676,92.59,8.1448711]
[1770239203001,7.89425327,92.695,92.61,8.1448711]
[1770239203197,8.1448711,92.75,92.61,8.1448711]
[1770239203198,7.89425327,92.718,92.61,8.1448711]
[1770239203402,7.89425327,92.706,92.527,32.36]
[1770239203597,7.89425327,92.706,92.58,8.1448711]
[1770239204103,7.89425327,92.706,92.526,151.6096]
[1770239204104,7.89425327,92.689,92.56,8.1448711]
[1770239204303,7.89425327,92.689,92.58,8.1448711]
[1770239204502,9.7317,92.667,92.597,1.87825862]
[1770239205214,7.93660092,92.667,92.497,151.6598]
[1770239205500,7.93660092,92.667,92.557,1.87885692]
[1770239205705,9.7345,92.64,92.557,1.87885692]
[1770239206000,7.93660092,92.639,92.557,1.87885692]
[1770239206202,7.93660092,92.639,92.518,9.7473]
[1770239206400,7.93660092,92.639,92.54,8.1448711]
[1770239206799,7.93660092,92.639,92.57,8.1448711]
[1770239207094,7.93660092,92.639,92.541,32.36]
[1770239207095,8.1448711,92.72,92.59,8.1448711]
[1770239207299,151.2833,92.728,92.606,3.58931181]
[1770239207504,151.2709,92.736,92.606,3.58931181]
[1770239207505,151.2914,92.723,92.606,3.58931181]
[1770239207807,9.7295,92.688,92.606,3.58931181]
[1770239208005,151.2915,92.723,92.606,3.58931181]
[1770239208214,151.2915,92.723,92.542,151.5862]
[1770239208215,151.3391,92.694,92.583,3.58931181]
[1770239208403,151.3541,92.685,92.583,3.58931181]
[1770239208709,9.7342,92.643,92.583,3.58931181]
[1770239208900,8.1448711,92.7,92.583,3.58931181]
[1770239209106,3.72705998,92.691,92.583,3.58931181]
[1770239209303,151.3377,92.695,92.583,3.58931181]
[1770239209304,3.72705998,92.687,92.583,3.58931181]
[1770239209498,9.7339,92.646,92.583,3.58931181]
[1770239209906,3.72705998,92.665,92.583,3.58931181]
[1770239210514,9.7336,92.649,92.583,3.58931181]
[1770239210706,3.72705998,92.688,92.583,3.58931181]
[1770239211204,3.72705998,92.688,92.585,3.58931181]
[1770239211511,8.1448711,92.66,92.557,3.58931181]
[1770239212203,151.3992,92.657,92.557,3.58931181]
[1770239212512,8.1448711,92.64,92.51,8.1448711]
[1770239212812,8.1448711,92.62,92.514,1.87948606]
[1770239213114,8.1448711,92.62,92.494,1.87996327]
[1770239213413,3.72705998,92.599,92.47,8.1448711]
[1770239213711,3.72705998,92.599,92.494,1.88016641]
[1770239214113,9.7413,92.572,92.494,1.88016641]
[1770239214314,3.72705998,92.599,92.5,8.1448711]
[1770239214609,9.7354,92.623,92.542,9.7438]
[1770239214811,3.86313757,92.639,92.543,3.90977947]
[1770239215411,9.7353,92.624,92.543,3.90977947]
[1770239216004,9.7353,92.624,92.544,9.7436]
[1770239216208,9.7353,92.624,92.545,3.90977947]
[1770239216605,170.8134,92.676,92.494,1.88016641]
[1770239216606,3.86313757,92.617,92.522,3.90977947]
[1770239217409,9.7383,92.595,92.522,3.90977947]
[1770239217812,3.86313757,92.617,92.522,3.90977947]
[1770239218008,9.7367,92.61,92.534,3.90977947]
[1770239218514,9.7367,92.61,92.536,9.7444]
[1770239218715,9.7379,92.599,92.534,3.90977947]
[1770239220112,9.739,92.588,92.513,3.8214087]
[1770239220415,3.7756123,92.599,92.483,3.8214087]
[1770239220608,3.7756123,92.599,92.494,1.88021212]
[1770239220807,9.7405,92.574,92.507,3.8214087]
[1770239221011,3.7756123,92.599,92.511,3.8214087]
[1770239221517,9.7416,92.564,92.511,3.8214087]
[1770239221711,3.7756123,92.599,92.511,3.8214087]
[1770239221914,8.1448711,92.62,92.406,151.7942]
[1770239221915,9.7415,92.565,92.489,3.8214087]
[1770239222108,151.4418,92.622,92.489,3.8214087]
[1770239222109,3.7756123,92.564,92.489,3.8214087]
[1770239222617,151.3959,92.65,92.503,3.8214087]
[1770239222618,3.7756123,92.591,92.503,3.8214087]
[1770239222821,3.7756123,92.639,92.511,3.8214087]
[1770239223006,3.7756123,92.637,92.511,3.8214087]
[1770239223207,3.7756123,92.607,92.514,3.8214087]
[1770239223406,3.7756123,92.607,92.491,3.8214087]
[1770239224314,9.7402,92.577,92.501,9.7481]
[1770239224508,9.7402,92.577,92.501,13.5695087]
[1770239224907,9.7402,92.577,92.502,3.8214087]
[1770239225112,151.3701,92.666,92.484,1.88055249]
[1770239225113,3.7756123,92.612,92.511,3.8214087]
[1770239225612,3.7756123,92.612,92.538,3.8214087]
[1770239226220,9.7377,92.6,92.54,9.744]
[1770239226419,3.7756123,92.659,92.541,3.8214087]
[1770239226717,9.7363,92.614,92.542,3.8214087]
[1770239227120,3.7756123,92.629,92.542,3.8214087]
[1770239227414,9.7361,92.616,92.552,3.8214087]
[1770239228015,9.735,92.627,92.552,3.8214087]
[1770239228216,151.3048,92.706,92.561,3.8214087]
[1770239228217,3.7756123,92.651,92.561,3.8214087]
[1770239228418,3.7756123,92.651,92.572,3.8214087]
[1770239228725,8.1448711,92.68,92.52,151.6071]
[1770239228726,9.7313,92.661,92.581,3.8214087]
[1770239229219,9.7324,92.652,92.587,13.5605087]
[1770239229420,3.7756123,92.674,92.587,3.8214087]
[1770239230222,9.7335,92.641,92.587,3.8214087]
[1770239232020,9.7335,92.641,92.529,19.4904]
[1770239232021,3.7756123,92.599,92.508,3.8214087]
[1770239232412,9.7408,92.571,92.51,9.7471]
[1770239232818,3.7756123,92.599,92.508,3.8214087]
[1770239233017,9.7417,92.562,92.508,3.8214087]
[1770239233221,3.7756123,92.599,92.508,3.8214087]
[1770239233623,9.7402,92.577,92.513,9.7468]
[1770239234523,9.7402,92.577,92.461,19.5046]
[1770239234524,3.7756123,92.579,92.46,3.8214087]
[1770239234928,3.7756123,92.579,92.465,3.8214087]
[1770239235135,9.7424,92.556,92.481,3.8214087]
[1770239235337,3.7756123,92.579,92.481,3.8214087]
[1770239235535,9.7455,92.536,92.481,3.8214087]
[1770239235724,3.7756123,92.552,92.481,3.8214087]
[1770239236330,3.7756123,92.552,92.421,3.8214087]
[1770239236531,3.7756123,92.552,92.473,3.8214087]
[1770239236929,9.7451,92.531,92.473,3.8214087]
[1770239237332,3.7756123,92.552,92.473,3.8214087]
[1770239237536,9.7446,92.54,92.477,3.8214087]
[1770239238033,3.7756123,92.552,92.477,3.8214087]
[1770239238237,3.7756123,92.552,92.44,8.1448711]
[1770239238238,3.7756123,92.552,92.454,3.8214087]
[1770239238529,9.747,92.518,92.454,3.8214087]
[1770239238732,151.5172,92.581,92.444,1.88108617]
[1770239238733,3.7756123,92.531,92.445,3.8214087]
[1770239238927,3.7756123,92.564,92.445,3.8214087]
[1770239239125,3.7756123,92.564,92.444,1.88108617]
[1770239239126,3.7756123,92.564,92.457,3.8214087]
[1770239239727,3.7756123,92.536,92.457,3.8214087]
[1770239239931,3.7756123,92.536,92.434,3.8214087]
[1770239240128,3.7756123,92.532,92.438,3.8214087]
[1770239240330,151.4971,92.593,92.396,151.8185]
[1770239240331,3.7756123,92.569,92.451,3.8214087]
[1770239240831,151.5184,92.584,92.434,1.88137091]
[1770239240832,3.7756123,92.541,92.434,1.88137091]
[1770239241031,3.7756123,92.541,92.435,3.8214087]
[1770239241236,3.7756123,92.541,92.441,3.8214087]
[1770239241427,9.7437,92.553,92.466,3.8214087]
[1770239241632,151.4764,92.61,92.441,3.8214087]
[1770239241633,3.7756123,92.541,92.441,3.8214087]
[1770239241834,3.7756123,92.499,92.42,3.8214087]
[1770239242029,151.5692,92.553,92.42,3.8214087]
[1770239242030,3.7756123,92.522,92.42,3.8214087]
[1770239242228,3.7756123,92.522,92.42,11.9662798]
[1770239242428,3.7756123,92.522,92.423,3.8214087]
[1770239242939,3.7756123,92.522,92.424,3.8214087]
[1770239243440,9.7476,92.517,92.424,3.8214087]
[1770239243933,9.7476,92.517,92.427,3.64818904]
[1770239244535,3.7756123,92.522,92.427,3.64818904]
[1770239244741,3.6611467,92.545,92.441,3.64818904]
[1770239245035,3.6611467,92.545,92.444,3.64818904]
[1770239245442,9.7447,92.543,92.447,3.64818904]
[1770239245833,3.6611467,92.542,92.447,3.64818904]
[1770239246038,9.7476,92.516,92.447,3.64818904]
[1770239246240,3.6611467,92.542,92.447,3.64818904]
[1770239246636,9.7475,92.517,92.447,3.64818904]
[1770239248447,9.749,92.502,92.42,3.64818904]
[1770239248738,3.6611467,92.501,92.398,3.64818904]
[1770239248935,9.748,92.512,92.421,1.8818389]
[1770239249134,8.21172559,92.53,92.422,3.64818904]
[1770239249135,3.6611467,92.511,92.422,3.64818904]
[1770239249639,9.7483,92.51,92.424,3.64818904]
[1770239249844,3.6611467,92.511,92.424,3.64818904]
[1770239250338,9.7495,92.498,92.424,3.64818904]
[1770239250543,3.6611467,92.511,92.391,3.64818904]
[1770239250745,151.6196,92.522,92.396,3.64818904]
[1770239250746,3.6611467,92.499,92.396,3.64818904]
[1770239251143,8.21172559,92.5,92.396,3.64818904]
[1770239251144,9.7525,92.469,92.396,3.64818904]
[1770239251839,3.6611467,92.479,92.396,3.64818904]
[1770239252034,3.6611467,92.479,92.397,86.36]
[1770239252235,3.6611467,92.479,92.398,3.64818904]
[1770239252642,9.7518,92.476,92.398,3.64818904]
[1770239252842,9.7518,92.476,92.4,3.64818904]
[1770239253638,9.7505,92.488,92.402,3.64818904]
[1770239254041,3.6611467,92.501,92.402,3.64818904]
[1770239254242,3.6611467,92.522,92.411,3.64818904]
[1770239254439,3.6611467,92.522,92.41,8.21172559]
[1770239254440,9.7475,92.517,92.43,3.64818904]
[1770239255045,9.7475,92.517,92.433,3.64818904]
[1770239255647,9.7475,92.517,92.435,3.64818904]
[1770239255843,9.7475,92.517,92.437,3.64818904]
[1770239256342,9.7475,92.517,92.439,3.64818904]
[1770239257140,9.7462,92.529,92.441,3.64818904]
[1770239257341,9.7462,92.529,92.443,3.64818904]
[1770239257750,3.6611467,92.546,92.443,3.64818904]
[1770239257951,3.6611467,92.546,92.41,8.21172559]
[1770239257952,3.6611467,92.546,92.445,3.64818904]
[1770239258245,3.6611467,92.571,92.471,3.64818904]
[1770239258548,3.6611467,92.571,92.473,3.64818904]
[1770239259341,3.6611467,92.571,92.475,3.64818904]
[1770239259542,3.6611467,92.571,92.412,32.36]
[1770239259543,3.6611467,92.571,92.477,3.64818904]
[1770239260144,3.6611467,92.547,92.477,3.64818904]
[1770239260345,9.46104366,92.608,92.477,3.64818904]
[1770239260346,3.6611467,92.572,92.477,3.64818904]
[1770239260647,3.6611467,92.535,92.44,3.64818904]
[1770239261247,3.6611467,92.535,92.43,8.21172559]
[1770239261248,3.6611467,92.535,92.442,3.64818904]
[1770239261650,3.6611467,92.533,92.443,9.7552]
[1770239262042,3.6611467,92.533,92.444,3.64818904]
[1770239262646,9.7477,92.515,92.444,3.64818904]
[1770239263649,9.7479,92.513,92.444,3.64818904]
[1770239263848,9.7479,92.513,92.431,9.7564]
[1770239263849,3.6611467,92.512,92.431,9.7564]
[1770239264549,3.6611467,92.51,92.431,9.7564]
[1770239264848,3.6611467,92.51,92.423,3.64818904]
[1770239265639,9.7485,92.507,92.429,3.64818904]
[1770239266550,9.7485,92.507,92.431,3.64818904]
[1770239267450,9.7485,92.507,92.433,3.64818904]
[1770239268845,3.6611467,92.51,92.441,3.64818904]
[1770239269647,9.7455,92.536,92.469,3.64818904]
[1770239269846,3.6611467,92.538,92.469,3.64818904]
[1770239270741,3.6611467,92.534,92.448,3.64818904]
[1770239271342,9.7474,92.518,92.45,9.7545]
[1770239271745,3.6611467,92.534,92.45,9.7545]
[1770239271945,3.6611467,92.534,92.45,13.40268904]
[1770239272252,3.6611467,92.534,92.461,9.7533]
[1770239272647,3.6611467,92.534,92.467,9.7526]
[1770239272843,3.6611467,92.534,92.468,3.64818904]
[1770239273443,3.6611467,92.534,92.441,3.64818904]
[1770239273849,3.6611467,92.519,92.446,9.7549]
[1770239274050,3.72643912,92.576,92.461,3.78430466]
[1770239274249,3.72643912,92.567,92.494,9.7498]
[1770239274647,3.72643912,92.567,92.461,3.78430466]
[1770239275850,3.72643912,92.536,92.468,9.7526]
[1770239276051,3.72643912,92.536,92.421,3.78430466]
[1770239276452,3.72643912,92.517,92.443,9.7552]
[1770239277451,3.72643912,92.517,92.447,9.7548]
[1770239277754,3.72643912,92.517,92.444,3.78430466]
[1770239277951,9.7478,92.514,92.444,3.78430466]
[1770239278353,3.72643912,92.517,92.444,13.53940466]
[1770239278953,13.65119757,92.514,92.444,13.53940466]
[1770239279151,13.65119757,92.514,92.417,9.7798841]
[1770239279152,3.90339757,92.513,92.431,9.7565]
[1770239279653,3.90339757,92.513,92.431,13.50996606]
[1770239279856,3.90339757,92.498,92.431,13.50996606]
[1770239280056,3.90339757,92.498,92.431,3.75346606]
[1770239280654,9.7511,92.482,92.431,3.75346606]
[1770239281861,3.90339757,92.473,92.41,9.7587]
[1770239282461,3.90339757,92.473,92.408,3.75346606]
[1770239282954,3.90339757,92.497,92.43,3.75346606]
[1770239283861,3.90339757,92.497,92.433,3.75346606]
[1770239284753,3.90339757,92.497,92.445,9.755]
[1770239285159,3.90339757,92.522,92.467,9.7527]
[1770239286161,13.65039757,92.522,92.464,3.75346606]
[1770239287356,13.65039757,92.522,92.465,9.7529]
[1770239288159,13.65039757,92.522,92.464,3.75346606]
[1770239289664,3.90339757,92.54,92.466,3.75346606]
[1770239290864,3.90339757,92.54,92.485,9.7507]
[1770239294468,3.90339757,92.54,92.437,32.36]
[1770239294469,3.90339757,92.538,92.464,3.75346606]
[1770239295472,3.90339757,92.538,92.44,6.96519165]
[1770239295669,9.7463,92.529,92.465,9.7528]
[1770239295870,3.90339757,92.528,92.465,9.7528]
[1770239296269,3.90339757,92.525,92.452,9.7542]
[1770239297071,9.7481,92.512,92.442,9.7553]
[1770239297462,9.7481,92.512,92.42,8.21172559]
[1770239297463,9.7481,92.512,92.443,0.80057097]
[1770239297864,13.65149757,92.512,92.443,0.80057097]
[1770239298672,13.65149757,92.512,92.447,9.7547]
[1770239298973,13.65149757,92.512,92.443,0.80057097]
[1770239299373,13.65149757,92.512,92.394,32.36]
[1770239299374,3.90339757,92.529,92.46,0.72269005]
[1770239299570,3.90339757,92.529,92.461,0.72269005]
[1770239299969,3.90339757,92.529,92.46,8.21172559]
[1770239299970,9.7437,92.553,92.49,9.7502]
[1770239300167,17.67276925,92.59,92.49,9.7502]
[1770239300168,3.90339757,92.552,92.49,9.7502]
[1770239300770,3.90339757,92.552,92.477,0.72269005]
[1770239300771,3.90339757,92.552,92.499,9.7493]
[1770239303179,3.90339757,92.575,92.494,0.74732855]
[1770239304777,3.90339757,92.575,92.508,9.7483]
[1770239304979,3.90339757,92.575,92.494,0.74732855]
[1770239305670,3.90339757,92.575,92.516,9.7475]
[1770239305970,3.90339757,92.575,92.494,0.74732855]
[1770239305971,3.8206017,92.569,92.494,0.74732855]
[1770239306176,3.8206017,92.569,92.475,0.89463944]
[1770239306682,3.8206017,92.557,92.487,9.7505]
[1770239307777,3.8206017,92.553,92.487,9.7505]
[1770239307976,3.8206017,92.553,92.478,9.7515]
[1770239308176,3.8206017,92.553,92.435,0.97583609]
[1770239308473,3.8206017,92.549,92.488,9.7504]
[1770239308672,3.8206017,92.549,92.468,0.96996162]
[1770239309472,3.8206017,92.549,92.488,0.96996162]
[1770239309778,3.8206017,92.567,92.488,0.96996162]
[1770239309976,3.8206017,92.567,92.514,9.7477]
[1770239310177,3.8206017,92.567,92.488,0.96996162]
[1770239310578,3.8206017,92.567,92.509,0.76305533]
[1770239311170,3.8206017,92.567,92.481,0.76305533]
[1770239311374,1.88048644,92.624,92.481,0.76305533]
[1770239311375,3.8206017,92.587,92.481,0.76305533]
[1770239311570,3.8206017,92.587,92.48,8.20757751]
[1770239311571,3.8206017,92.587,92.529,9.7461]
[1770239311973,3.8206017,92.587,92.52,9.7471]
[1770239312177,3.8206017,92.587,92.466,32.36]
[1770239312178,3.8206017,92.587,92.499,0.76305533]
[1770239312579,3.8206017,92.587,92.521,9.747]
[1770239313281,3.8206017,92.587,92.427,151.7742]
[1770239313282,3.8206017,92.587,92.517,0.89578575]
[1770239313777,3.8206017,92.573,92.497,0.89578575]
[1770239314584,3.8206017,92.559,92.499,9.7493]
[1770239316484,3.8206017,92.559,92.508,9.7483]
[1770239317084,3.8206017,92.559,92.449,32.36]
[1770239317085,3.8206017,92.577,92.501,0.92915122]
[1770239317284,3.8206017,92.597,92.521,0.92915122]
[1770239317685,3.8206017,92.597,92.543,9.7446]
[1770239317984,3.8206017,92.597,92.521,0.92915122]
[1770239318186,9.7392,92.596,92.531,9.7459]
[1770239318380,9.7392,92.596,92.532,0.92915122]
[1770239318381,3.8206017,92.595,92.532,0.92915122]
[1770239318782,3.8206017,92.595,92.482,19.5023]
[1770239318783,3.8206017,92.595,92.512,0.8972197]
[1770239318985,3.8206017,92.595,92.49,8.20757751]
[1770239318986,3.8206017,92.564,92.5,9.7492]
[1770239319279,3.8206017,92.564,92.492,0.8972197]
[1770239319681,3.8206017,92.564,92.509,9.7483]
[1770239320777,9.7427,92.561,92.509,9.7483]
[1770239320985,3.8206017,92.609,92.517,0.91086614]
[1770239321583,9.7408,92.581,92.528,9.7463]
[1770239321886,3.8206017,92.58,92.528,9.7463]
[1770239322086,9.742,92.569,92.517,0.91086614]
[1770239322381,9.742,92.569,92.49,8.20757751]
[1770239322382,3.8206017,92.569,92.498,0.91086614]
[1770239322980,9.7431,92.559,92.509,9.7482]
[1770239323585,9.7431,92.559,92.499,9.7493]
[1770239323985,9.7431,92.559,92.499,0.92697724]
[1770239325790,9.7436,92.554,92.506,9.7485]
[1770239325987,9.7436,92.554,92.499,0.92697724]
[1770239326183,3.8206017,92.558,92.499,0.92697724]
[1770239326488,9.7445,92.545,92.499,0.92697724]
[1770239328189,3.8206017,92.558,92.499,0.92697724]
[1770239329683,3.8206017,92.609,92.511,1.00113835]
[1770239330191,3.8206017,92.588,92.511,1.00113835]
[1770239330790,9.7402,92.586,92.541,9.7448]
[1770239331392,3.8206017,92.588,92.541,9.7448]
[1770239333687,3.8206017,92.588,92.499,13.4272624]
[1770239333688,3.8206017,92.657,92.551,1.09232246]
[1770239333897,3.8206017,92.657,92.571,1.12613618]
[1770239334098,3.8206017,92.657,92.591,1.12613618]
[1770239334298,3.76937033,92.713,92.618,9.7368]
[1770239334493,3.76937033,92.713,92.608,1.12613618]
[1770239334694,3.76937033,92.713,92.555,164.9913624]
[1770239334695,3.76937033,92.699,92.586,1.12613618]
[1770239334895,3.76937033,92.665,92.586,1.12613618]
[1770239336600,1.8784766,92.694,92.566,1.16075037]
[1770239336601,3.76937033,92.65,92.566,1.16075037]
[1770239337004,3.76937033,92.65,92.531,1.16075037]
[1770239337306,8.20757751,92.66,92.53,8.20757751]
[1770239337307,3.76937033,92.649,92.559,1.16075037]
[1770239338301,3.76937033,92.649,92.596,9.7391]
[1770239339204,3.57923985,92.671,92.606,9.7381]
[1770239339409,3.57923985,92.671,92.596,1.1351003]
[1770239340406,3.57923985,92.671,92.605,9.7382]
[1770239340900,3.57923985,92.671,92.596,1.1351003]
[1770239341097,3.57923985,92.671,92.571,1.1908162]
[1770239341501,3.57923985,92.671,92.589,1.1908162]
[1770239341700,3.57923985,92.671,92.591,1.1908162]
[1770239342101,19.4461,92.75,92.591,1.1908162]
[1770239342102,3.57923985,92.729,92.615,1.1908162]
[1770239342404,3.57923985,92.729,92.631,1.1908162]
[1770239343205,9.7277,92.705,92.642,9.7342]
[1770239343596,13.30693985,92.705,92.642,9.7342]
[1770239343795,3.57923985,92.704,92.642,9.7342]
[1770239344201,3.57923985,92.704,92.631,1.1908162]
[1770239344202,3.57923985,92.704,92.651,9.7333]
[1770239344604,3.57923985,92.704,92.631,1.1908162]
[1770239345506,3.57923985,92.698,92.611,1.20349482]
[1770239345902,3.57923985,92.698,92.59,1.20349482]
[1770239346207,3.57923985,92.656,92.596,9.7391]
[1770239346508,3.57923985,92.656,92.59,1.20349482]
[1770239346708,3.57923985,92.656,92.609,9.7377]
[1770239347014,3.57923985,92.656,92.59,1.20349482]
[1770239347201,3.57923985,92.656,92.609,9.7377]
[1770239348005,3.57923985,92.656,92.598,9.7389]
[1770239348406,3.57923985,92.656,92.59,1.20349482]
[1770239348407,3.57923985,92.656,92.607,9.7379]
[1770239348601,3.57923985,92.656,92.59,1.20349482]
[1770239349106,3.57923985,92.656,92.615,9.7371]
[1770239349314,3.57923985,92.676,92.615,9.7371]
[1770239349508,3.57923985,92.676,92.59,1.20349482]
[1770239349812,3.57923985,92.647,92.561,1.17120213]
[1770239350711,3.57923985,92.638,92.575,9.7413]
[1770239350912,3.57923985,92.638,92.561,1.17120213]
[1770239351111,9.7359,92.627,92.57,9.7418]
[1770239351314,3.57923985,92.626,92.561,1.17120213]
[1770239352916,3.57923985,92.618,92.566,9.7422]
[1770239353116,3.57923985,92.618,92.561,1.17120213]
[1770239353316,9.7357,92.629,92.572,9.7416]
[1770239353514,3.57923985,92.641,92.561,1.17120213]
[1770239354109,3.57923985,92.641,92.59,9.7397]
[1770239354416,3.57923985,92.641,92.571,1.17042929]
[1770239354809,3.57923985,92.641,92.608,9.7378]
[1770239355917,3.20308586,92.641,92.608,9.7378]
[1770239356317,0.29469845,92.641,92.608,9.7378]
[1770239356616,9.7325,92.66,92.608,9.7378]
[1770239356818,8.20757751,92.71,92.617,9.7369]
[1770239357414,9.732,92.664,92.606,9.738]
[1770239357618,8.20757751,92.71,92.591,3.93679597]
[1770239358219,3.57923985,92.709,92.591,3.93679597]
[1770239358412,151.2958,92.72,92.591,3.93679597]
[1770239358413,3.57923985,92.689,92.591,3.93679597]
[1770239358615,3.57923985,92.654,92.596,9.7391]
[1770239359810,9.7335,92.65,92.596,9.7391]
[1770239360010,3.57923985,92.654,92.596,9.7391]
[1770239360617,3.57923985,92.654,92.604,9.7383]
[1770239360915,3.57923985,92.654,92.549,19.4882]
[1770239361114,3.57923985,92.654,92.553,3.93679597]
[1770239361419,9.7363,92.623,92.57,9.7418]